bitfinex/quotes_ETHUSD_20250715
["timestamp","ask_amount","ask_price","bid_price","bid_amount"]
[1752622931226,1e-08,3134.2,3134.1,10.7310004]
[1752622931724,1e-08,3134.2,3134.1,5.7240004]
[1752622931928,1e-08,3134.2,3134.1,10.76290748]
[1752622932130,1e-08,3134.2,3134.1,10.7310004]
[1752622933246,1e-08,3134.2,3134.1,13.7310004]
[1752622933457,1e-08,3134.2,3134.1,13.8902004]
[1752622934641,1e-08,3134.2,3134.1,8.8832004]
[1752622934830,1e-08,3134.2,3134.1,13.8902004]
[1752622935226,1e-08,3134.2,3134.1,8.8832004]
[1752622935431,1e-08,3134.2,3134.1,13.4258004]
[1752622935659,1e-08,3134.2,3134.1,5.006]
[1752622935863,1e-08,3134.2,3134.0,3.19076234]
[1752622936170,1e-08,3134.2,3134.1,5.006]
[1752622936459,1e-08,3134.2,3134.1,8.22861573]
[1752622936627,1e-08,3134.2,3134.1,8.19670865]
[1752622938065,1e-08,3134.2,3134.1,3.19070865]
[1752622938377,1e-08,3134.2,3134.1,8.22861573]
[1752622938569,1e-08,3134.2,3134.1,8.19670865]
[1752622939531,1e-08,3134.2,3134.1,8.66530865]
[1752622942549,1e-08,3134.2,3134.1,3.65930865]
[1752622942749,1e-08,3134.2,3134.1,8.69721573]
[1752622942951,1e-08,3134.2,3134.1,8.66530865]
[1752622944062,1e-08,3134.2,3134.1,3.19070865]
[1752622944462,1e-08,3134.2,3134.1,5.005]
[1752622944984,1e-08,3134.2,3134.1,8.22761573]
[1752622945195,1e-08,3134.2,3134.1,8.19570865]
[1752622945989,1e-08,3134.2,3134.1,8.66430865]
[1752622947077,1e-08,3134.2,3134.1,8.19570865]
[1752622949358,1e-08,3134.2,3134.0,3.19077643]
[1752622949561,1e-08,3134.2,3134.1,5.03690708]
[1752622950073,1e-08,3134.2,3134.1,8.22761573]
[1752622950389,1e-08,3134.2,3134.1,8.19570865]
[1752622951859,1e-08,3134.2,3134.1,8.19470865]
[1752622952489,1e-08,3134.2,3133.9,0.1592]
[1752622952691,1e-08,3134.2,3133.5,0.7658]
[1752622952692,0.1592,3133.9,3133.6,3.19121776]
[1752622952869,0.1592,3133.9,3133.7,5.004]
[1752622953066,3.19096922,3133.9,3133.4,3.19138634]
[1752622953302,0.1592,3133.8,3133.5,5.004]
[1752622953488,0.5734,3133.8,3133.4,3.19139984]
[1752622953687,0.1592,3133.8,3133.5,5.004]
[1752622953888,0.1592,3133.8,3133.5,8.66390296]
[1752622954204,0.1592,3133.8,3133.6,3.65981776]
[1752622954402,0.1592,3133.8,3133.7,5.004]
[1752622954570,0.1592,3133.8,3133.7,8.19511593]
[1752622954909,1e-08,3134.2,3134.0,3.19081046]
[1752622955202,0.15920001,3134.2,3134.1,3.19070865]
[1752622955606,0.15920001,3134.2,3134.0,8.19476088]
[1752622955816,0.15920001,3134.2,3134.0,3.19076088]
[1752622955968,0.15920001,3134.2,3134.1,5.004]
[1752622956169,0.15920001,3134.2,3134.0,3.19076088]
[1752622956369,0.15920001,3134.2,3134.1,5.004]
[1752622957178,3.19070865,3134.1,3133.5,3.19121963]
[1752622957389,0.57340001,3134.2,3133.3,1.2276]
[1752622957390,1.70041087,3134.0,3133.4,3.19136096]
[1752622957600,0.1592,3133.7,3133.5,8.19531623]
[1752622958197,0.1592,3133.7,3133.5,5.004]
[1752622958406,0.1592,3133.7,3133.6,5.004]
[1752622960308,0.1592,3133.7,3133.4,3.19138077]
[1752622960622,0.1592,3133.7,3133.5,8.195318]
[1752622960827,0.1592,3133.7,3133.5,3.191318]
[1752622960978,0.1592,3133.7,3133.6,8.66381776]
[1752622961183,1e-08,3134.2,3133.6,6.2316]
[1752622961401,0.15920001,3134.2,3134.1,3.19070865]
[1752622962205,0.15920001,3134.2,3134.1,3.65930865]
[1752622962392,0.15920001,3134.2,3134.1,4.47940865]
[1752622962590,1e-08,3134.2,3134.1,5.77873734]
[1752622962991,1e-08,3134.2,3134.1,5.93793734]
[1752622964518,1e-08,3134.2,3134.1,5.11783734]
[1752622964733,1e-08,3134.2,3134.1,10.12083734]
[1752622964903,1e-08,3134.2,3134.1,10.08893026]
[1752622965389,1e-08,3134.2,3134.1,13.08893026]
[1752622966388,1e-08,3134.2,3134.1,7.61733026]
[1752622966625,1e-08,3134.2,3134.1,8.35290865]
[1752622967124,1e-08,3134.2,3134.1,8.81950865]
[1752622967498,1e-08,3134.2,3134.1,12.63930865]
[1752622969424,1e-08,3134.2,3134.1,7.63630865]
[1752622969603,1e-08,3134.2,3134.1,14.66066584]
[1752622969923,1e-08,3134.2,3134.1,5.002]
[1752622971121,1e-08,3134.2,3134.1,8.19270865]
[1752622971300,1e-08,3134.2,3134.1,8.65930865]
[1752622972314,1e-08,3134.2,3134.1,9.45620865]
[1752622972544,1e-08,3134.2,3134.1,9.61540865]
[1752622972710,1e-08,3134.2,3134.1,10.8960303]
[1752622973117,1e-08,3134.2,3134.1,13.8960303]
[1752622974716,1e-08,3134.2,3134.1,8.8940303]
[1752622975046,1e-08,3134.2,3134.1,5.001]
[1752622975229,1e-08,3134.2,3133.8,3.35018777]
[1752622975428,1e-08,3134.2,3133.9,5.03290912]
[1752622976030,3.19062091,3134.2,3133.9,5.03290912]
[1752622976232,1e-08,3134.2,3133.9,5.03290912]
[1752622978245,0.4142,3134.6,3133.9,5.03290912]
[1752622978246,0.002,3135.4,3134.7,3.19009793]
[1752622978465,0.002,3135.4,3135.3,3.18948744]
[1752622978742,0.002,3135.4,3134.9,0.761]
[1752622979042,0.002,3135.4,3134.8,0.4666]
[1752622979043,0.7546,3135.4,3135.1,3.1896877]
[1752622979253,0.7546,3135.4,3135.2,5.022]
[1752622980047,1.14917902,3135.4,3135.2,5.022]
[1752622980556,0.7546,3135.4,3135.3,3.18948744]
[1752622980859,0.002,3135.4,3135.3,3.68798231]
[1752622981407,0.002,3135.4,3135.3,4.47328231]
[1752622981713,0.002,3135.4,3135.3,8.70998231]
[1752622981908,0.002,3135.4,3135.3,8.67808744]
[1752622982141,0.002,3135.4,3135.3,8.67508744]
[1752622982663,0.002,3135.4,3134.6,0.7635]
[1752622982849,0.002,3135.4,3134.9,3.18983143]
[1752622983150,0.002,3135.4,3135.0,5.018]
[1752622983347,0.7814,3135.3,3135.0,8.20778023]
[1752622983544,0.7814,3135.3,3135.1,3.18963971]
[1752622983745,0.7814,3135.3,3135.2,5.02]
[1752622984838,0.7814,3135.3,3134.9,3.18985407]
[1752622985149,0.7814,3135.3,3135.0,5.016]
[1752622985315,0.7814,3135.3,3134.2,0.7635]
[1752622985515,3.18975191,3135.1,3134.5,3.19024355]
[1752622985846,3.97091104,3135.3,3134.7,3.19003625]
[1752622986012,0.7814,3135.3,3134.8,5.016]
[1752622986214,0.7814,3135.3,3134.9,3.18989441]
[1752622987045,0.7814,3135.3,3135.0,3.18976723]
[1752622987458,0.7814,3135.3,3134.9,3.18984942]
[1752622988185,0.1592,3135.1,3134.9,3.18984942]
[1752622988371,0.1592,3135.1,3135.0,8.20379266]
[1752622988747,0.1592,3135.1,3135.0,5.014]
[1752622989888,0.1592,3135.1,3134.7,3.19007959]
[1752622990048,0.1592,3135.1,3134.9,5.01]
[1752622991568,0.1592,3135.1,3134.9,5.008]
[1752622991786,0.1592,3135.1,3134.9,8.6644013]
[1752622992083,0.1592,3135.1,3134.9,8.1978013]
[1752622992279,0.1592,3135.1,3134.9,3.1898013]
[1752622992466,0.1592,3135.1,3134.8,3.18994539]
[1752622992669,0.1592,3135.1,3135.0,5.005]
[1752622993278,0.1592,3135.1,3134.9,5.005]
[1752622993478,0.1592,3135.1,3134.9,5.004]
[1752622993685,0.1592,3135.1,3134.7,0.03190097]
[1752622993846,0.1592,3135.1,3134.8,5.004]
[1752622994043,0.1592,3135.1,3134.7,3.19008408]
[1752622994244,0.1592,3135.1,3134.8,5.003]
[1752622994844,3.34892401,3135.1,3134.8,5.003]
[1752622995044,0.1592,3135.1,3134.8,5.003]
[1752622995449,3.34890783,3135.1,3134.8,5.003]
[1752622995782,0.1592,3134.8,3134.7,5.001]
[1752622996190,3.34919617,3134.8,3134.7,5.001]
[1752622996562,3.34919617,3134.8,3134.3,3.34965829]
[1752622996763,3.34919617,3134.8,3134.4,5.001]
[1752622998191,3.34919617,3134.8,3133.8,0.4703]
[1752622998192,1.2359,3134.7,3133.8,0.4703]
[1752622998393,0.1592,3134.3,3134.0,3.19081046]
[1752622998795,0.1592,3134.3,3134.0,3.66111046]
[1752623000066,0.1592,3134.3,3134.0,0.4703]
[1752623000266,0.1592,3134.3,3134.1,5.001]
[1752623001301,0.1592,3134.3,3134.1,8.19169133]
[1752623001514,0.8197,3134.7,3134.2,3.69281291]
[1752623001712,0.1592,3134.7,3134.5,3.19025089]
[1752623002009,0.1592,3134.7,3134.6,5.001]
[1752623002195,0.1592,3134.7,3134.6,5.4713]
[1752623002375,0.7545,3135.0,3134.6,8.6614997]
[1752623002582,0.00645587,3134.7,3134.6,8.6614997]
[1752623002882,0.00645587,3134.7,3134.6,9.86259946]
[1752623003081,0.1592,3135.1,3134.8,3.18993512]
[1752623003280,0.1592,3135.1,3135.0,3.18979266]
[1752623003710,3.34896632,3135.1,3134.7,5.001]
[1752623003887,0.1592,3134.9,3134.7,5.001]
[1752623004404,0.1592,3134.9,3134.7,3.19004541]
[1752623004613,0.1592,3134.9,3134.8,5.001]
[1752623005706,0.1592,3134.9,3134.8,8.66129617]
[1752623005895,0.788,3135.4,3134.8,9.84643033]
[1752623006098,0.1592,3135.2,3134.9,3.22173931]
[1752623006889,0.1592,3135.2,3135.0,5.001]
[1752623007299,3.97739082,3135.4,3135.0,5.001]
[1752623007612,0.1592,3135.1,3135.0,5.001]
[1752623007808,0.1592,3135.1,3134.9,5.001]
[1752623007979,0.788,3135.4,3134.9,5.001]
[1752623007980,3.18986385,3135.0,3134.9,5.001]
[1752623008182,3.18986385,3135.0,3134.7,5.001]
[1752623008183,0.1592,3134.9,3134.7,5.001]
[1752623008394,0.1592,3134.8,3134.7,5.001]
[1752623009400,0.9574,3134.8,3134.3,3.19047143]
[1752623009587,4.14739617,3134.8,3134.3,3.66077143]
[1752623009914,4.14739617,3134.8,3134.4,5.001]
[1752623010091,0.9574,3134.8,3134.4,8.66166682]
[1752623010291,0.9574,3134.8,3134.5,3.19023916]
[1752623010485,0.9574,3134.8,3134.6,8.19118795]
[1752623010680,0.9574,3134.8,3134.6,5.001]
[1752623011212,0.1592,3134.8,3134.6,5.4713]
[1752623011401,0.1592,3134.8,3134.6,5.001]
[1752623011609,0.1592,3134.8,3134.6,5.4713]
[1752623012016,3.349218,3134.8,3134.6,5.4713]
[1752623012320,3.349218,3134.8,3134.6,5.001]
[1752623012321,0.1592,3134.8,3134.6,5.001]
[1752623013223,3.34924674,3134.8,3134.7,5.001]
[1752623014222,0.1592,3134.8,3134.5,0.03190301]
[1752623014421,0.1592,3134.8,3134.6,5.4713]
[1752623015808,0.1592,3134.8,3134.6,5.001]
[1752623016007,3.19009793,3134.7,3134.3,0.4703]
[1752623016211,3.34924377,3134.8,3134.3,0.42922605]
[1752623016524,0.1592,3134.8,3134.2,0.1592]
[1752623016727,4.40421586,3135.0,3134.0,1.2203]
[1752623016892,3.19030199,3134.5,3134.0,0.0319081]
[1752623017088,0.1592,3134.3,3134.1,5.0]
[1752623017734,8.18986846,3135.0,3134.1,5.0]
[1752623017735,0.7907,3135.1,3134.3,0.769]
[1752623017929,3.34919009,3134.9,3134.4,5.03190403]
[1752623018224,0.002,3134.8,3134.5,5.0]
[1752623018629,0.002,3134.8,3134.5,5.4703]
[1752623018996,0.002,3134.8,3134.5,0.4703]
[1752623019394,0.002,3134.8,3134.5,5.4703]
[1752623020237,0.002,3134.8,3134.5,8.66057708]
[1752623020436,0.002,3134.8,3134.5,5.4703]
[1752623020598,0.002,3134.8,3134.6,0.4703]
[1752623023510,0.002,3134.8,3134.7,5.0]
[1752623025841,0.002,3134.8,3134.4,3.19035116]
[1752623026041,0.002,3134.8,3134.3,0.001]
[1752623026042,0.002,3134.8,3134.5,8.19024667]
[1752623026211,0.002,3134.8,3134.6,3.19014082]
[1752623026553,0.002,3134.8,3134.6,0.4616]
[1752623027256,0.002,3134.8,3134.6,3.65174884]
[1752623027432,0.002,3134.8,3134.7,6.35867585]
[1752623027637,0.002,3134.8,3134.7,9.54877378]
[1752623027845,0.002,3134.8,3134.7,9.51687281]
[1752623028152,0.002,3134.8,3134.7,9.67607281]
[1752623028930,0.002,3134.8,3134.7,12.67607281]
[1752623029124,0.002,3134.8,3134.7,7.67607281]
[1752623029327,0.002,3134.8,3134.7,12.67507281]
[1752623031056,0.002,3134.8,3134.4,3.19030312]
[1752623031236,0.1612,3134.8,3134.5,4.999]
[1752623031436,0.1612,3134.8,3134.6,4.999]
[1752623032337,0.1612,3134.8,3134.6,8.18914484]
[1752623032752,0.1612,3134.8,3134.7,3.19009793]
[1752623033064,0.002,3134.8,3134.7,4.999]
[1752623033465,0.002,3134.8,3134.7,8.65069793]
[1752623035231,0.002,3134.8,3134.7,9.45609793]
[1752623035437,0.002,3134.8,3134.7,9.61529793]
[1752623035751,0.002,3134.8,3134.7,11.01425727]
[1752623038064,0.002,3134.8,3134.7,4.74825727]
[1752623038263,0.002,3134.8,3134.7,8.18809793]
[1752623038667,0.002,3134.8,3134.7,4.998]
[1752623038873,0.002,3134.8,3134.7,8.18809793]
[1752623039573,0.002,3134.8,3134.7,8.64969793]
[1752623040648,0.002,3134.8,3134.7,8.80889793]
[1752623040854,0.002,3134.8,3134.7,10.0088073]
[1752623042244,0.002,3134.8,3134.7,3.19009793]
[1752623042493,0.002,3135.4,3134.7,3.19009793]
[1752623042494,1e-08,3135.0,3134.9,3.18989441]
[1752623042655,0.002,3136.1,3136.0,6.18877551]
[1752623042844,0.002,3136.1,3136.0,21.87309851]
[1752623043175,0.7946,3137.2,3137.1,3.18765739]
[1752623043483,3.9939055,3137.7,3137.1,8.18465739]
[1752623043651,0.8068,3137.7,3137.1,8.18465739]
[1752623043853,3.60334941,3137.6,3136.6,0.8035]
[1752623044175,3.18741125,3137.4,3136.8,3.18795266]
[1752623044343,3.19657327,3137.3,3136.9,4.997]
[1752623044548,3.18747378,3137.3,3136.9,4.997]
[1752623044743,3.60367378,3137.3,3136.9,4.997]
[1752623045349,0.4162,3137.3,3136.9,4.997]
[1752623045545,0.8068,3137.5,3136.9,5.4586]
[1752623045781,0.4162,3138.2,3137.0,0.79397759]
[1752623046085,3.18690832,3137.9,3137.2,3.18752872]
[1752623046243,3.97634159,3138.1,3137.2,3.18752872]
[1752623046244,0.4162,3137.8,3137.2,0.03187555]
[1752623046446,3.98895018,3137.6,3137.0,3.18771567]
[1752623046677,0.39889502,3137.5,3137.1,5.011]
[1752623047067,0.39889502,3137.5,3137.2,5.011]
[1752623047266,3.98888577,3137.6,3136.9,3.64943867]
[1752623047459,3.98888577,3137.6,3137.0,5.011]
[1752623047787,3.98888577,3137.6,3136.9,3.64943867]
[1752623047990,3.98888577,3137.6,3137.0,8.19773889]
[1752623048695,3.98888577,3137.6,3137.1,5.008]
[1752623048853,0.39888858,3137.5,3137.1,5.008]
[1752623049076,0.39888858,3137.5,3136.5,3.7896]
[1752623049279,0.8017,3137.6,3137.2,3.64914042]
[1752623049502,0.8017,3137.6,3137.3,5.006]
[1752623049702,3.18742975,3137.4,3136.8,3.18793991]
[1752623049980,3.18727779,3137.5,3136.9,8.22573532]
[1752623050180,0.39889778,3137.4,3136.9,8.19385672]
[1752623050608,0.39889778,3137.4,3136.9,8.65545672]
[1752623051297,0.39889778,3137.4,3137.0,3.64933789]
[1752623052110,3.58631993,3137.4,3137.0,0.4616]
[1752623052277,3.18728048,3137.5,3137.0,0.4616]
[1752623052477,3.18728048,3137.5,3137.1,5.001]
[1752623052702,0.1592,3137.3,3137.1,5.001]
[1752623053100,0.1592,3137.3,3137.2,5.0]
[1752623054599,0.1592,3137.3,3137.2,8.64915578]
[1752623054787,0.1592,3137.6,3137.4,3.18734963]
[1752623055117,0.1592,3137.6,3137.5,8.64585099]
[1752623055329,0.1592,3137.6,3137.5,8.64485099]
[1752623055898,0.1592,3137.8,3137.7,3.1870462]
[1752623056099,0.1592,3137.8,3137.7,8.6601462]
[1752623056440,3.18624707,3138.5,3137.7,8.6601462]
[1752623056441,3.18633589,3138.5,3137.8,3.18692603]
[1752623056658,3.18633589,3138.5,3137.7,1.2656]
[1752623056659,0.1592,3138.0,3137.9,5.013]
[1752623057003,0.9575,3138.0,3136.8,3.0]
[1752623057319,0.1592,3137.7,3137.4,3.18734788]
[1752623057520,0.7983,3138.2,3137.7,3.18699194]
[1752623057845,0.1592,3138.0,3137.8,5.013]
[1752623058357,3.34601119,3138.0,3137.7,0.4661]
[1752623058557,3.18692636,3137.9,3137.8,5.018]
[1752623058728,0.7523,3137.9,3137.8,5.018]
[1752623059123,0.7523,3137.9,3137.2,1.4198]
[1752623059437,3.34614626,3137.8,3137.3,5.05087454]
[1752623059624,0.1592,3137.8,3137.3,5.05087454]
[1752623059826,0.1592,3137.8,3137.3,5.51697454]
[1752623060037,3.34620705,3137.8,3137.3,5.51697454]
[1752623060204,3.34620705,3137.8,3137.3,8.70442453]
[1752623060404,3.34620705,3137.8,3137.3,8.20644999]
[1752623060611,3.34620705,3137.8,3137.4,0.4661]
[1752623060940,3.18677459,3138.0,3137.4,0.4661]
[1752623060941,0.8015,3138.6,3137.5,10.64872831]
[1752623061138,0.8015,3138.6,3137.6,5.51797149]
[1752623061304,0.8015,3138.6,3137.7,0.4661]
[1752623061508,3.18640188,3138.4,3137.7,3.65308064]
[1752623062124,3.18640188,3138.4,3137.7,0.4661]
[1752623062125,0.55,3138.3,3137.7,0.4661]
[1752623062329,0.55,3138.3,3137.7,3.65308965]
[1752623062556,3.1866477,3138.1,3137.8,5.017]
[1752623063166,0.002,3138.0,3137.8,5.017]
[1752623063347,0.002,3138.0,3137.6,3.18709286]
[1752623063548,3.95344438,3138.0,3137.7,5.016]
[1752623063752,4.66744373,3138.0,3137.8,5.016]
[1752623063939,3.1868447,3137.9,3137.8,5.016]
[1752623064129,4.66748542,3138.0,3137.4,3.18734305]
[1752623064335,4.66748542,3138.0,3137.7,5.016]
[1752623065381,0.7858,3139.6,3138.2,0.8101]
[1752623065544,0.16651701,3139.9,3138.8,0.8321]
[1752623065866,0.8291,3140.7,3139.0,3.0]
[1752623066033,3.1844094,3140.3,3139.5,3.18512862]
[1752623066237,0.8291,3140.2,3139.6,3.18509273]
[1752623066433,4.01364831,3140.2,3139.7,5.047]
[1752623066836,2.41,3140.8,3139.2,3.0]
[1752623067062,3.18423875,3140.5,3139.8,3.18490993]
[1752623067256,3.18432763,3140.4,3139.9,5.067]
[1752623067540,3.18432763,3140.4,3139.2,3.18548399]
[1752623067541,3.18458304,3140.2,3139.5,3.18521204]
[1752623067742,0.55,3140.1,3139.6,8.25111453]
[1752623067935,0.55,3140.1,3139.6,5.066]
[1752623068161,3.18416555,3140.6,3139.7,0.4661]
[1752623068472,2.41,3140.8,3139.8,0.84104916]
[1752623068642,2.41,3140.8,3139.9,0.4661]
[1752623068837,2.41,3140.8,3140.3,3.18440305]
[1752623069055,2.41,3140.8,3140.5,3.18419497]
[1752623069252,2.41,3140.8,3140.6,0.4661]
[1752623069437,2.41,3140.8,3140.7,5.071]
[1752623069843,2.41,3140.8,3140.7,5.5371]
[1752623071073,2.5684,3140.8,3140.3,0.1592]
[1752623071369,0.55,3140.6,3139.7,0.1592]
[1752623071576,0.1592,3139.8,3139.6,5.065]
[1752623071782,0.1592,3139.8,3139.7,0.4661]
[1752623072465,0.1592,3139.8,3139.7,5.5391]
[1752623073383,0.1592,3139.8,3139.7,0.4661]
[1752623073589,0.1592,3139.8,3139.7,5.5391]
[1752623074152,0.1592,3139.8,3139.2,0.7764]
[1752623074390,0.1592,3139.6,3139.3,5.069]
[1752623074593,0.1592,3139.6,3139.2,0.80825524]
[1752623074780,0.1592,3139.6,3139.4,5.069]
[1752623075093,0.1592,3139.6,3139.4,5.5351]
[1752623075256,3.34433561,3139.6,3139.2,0.80825524]
[1752623075590,3.34433561,3139.6,3139.0,0.1592]
[1752623075591,3.18522207,3139.5,3139.3,5.069]
[1752623075775,3.18522207,3139.5,3139.0,3.34491145]
[1752623075776,3.18522207,3139.5,3139.0,0.1592]
[1752623075985,3.18555043,3139.2,3138.5,1.2908]
[1752623076157,0.1592,3139.1,3138.6,8.28293562]
[1752623076350,0.1592,3139.1,3138.7,3.4661]
[1752623076589,0.1592,3139.1,3138.7,3.49796032]
[1752623076803,0.1592,3139.1,3138.8,0.4661]
[1752623077483,0.1592,3139.1,3138.9,0.4661]
[1752623078301,3.18588313,3138.9,3138.4,0.23542385]
[1752623078505,3.18588313,3138.9,3138.1,4.47062703]
[1752623078506,0.1592,3138.8,3138.1,0.8179]
[1752623078707,0.7644,3139.0,3138.2,0.0318654]
[1752623078708,0.1592,3138.6,3138.2,0.0318654]
[1752623079071,0.1592,3138.4,3138.2,5.067]
[1752623079584,0.1592,3138.4,3138.2,5.5331]
[1752623080183,0.1592,3138.4,3138.2,0.4661]
[1752623080409,0.1592,3138.4,3138.2,5.5311]
[1752623080786,3.18643938,3138.3,3137.8,0.1592]
[1752623081084,0.1592,3138.2,3137.9,0.4661]
[1752623081591,0.1592,3138.2,3137.8,8.064]
[1752623081592,0.49376394,3138.2,3137.7,0.1592]
[1752623081904,0.1592,3137.9,3137.6,5.063]
[1752623082202,0.1592,3137.9,3137.4,3.18734802]
[1752623082409,3.187012,3137.8,3137.4,5.063]
[1752623082607,0.1592,3137.6,3137.3,5.063]
[1752623083012,0.1592,3137.6,3137.4,0.4661]
[1752623083189,0.1592,3137.6,3137.3,5.063]
[1752623083385,0.1592,3137.6,3137.5,0.4661]
[1752623083592,0.1592,3137.6,3137.3,5.5291]
[1752623083789,3.34641231,3137.6,3137.3,5.063]
[1752623084095,0.1592,3137.6,3137.3,5.063]
[1752623084408,0.1592,3137.6,3137.3,5.56097454]
[1752623085006,0.1592,3137.6,3137.4,0.4661]
[1752623087690,0.1592,3137.6,3137.4,3.65338818]
[1752623087901,0.1592,3137.6,3137.4,0.4661]
[1752623089117,0.1592,3137.6,3137.3,5.063]
[1752623089322,0.1592,3137.6,3137.3,5.56937454]
[1752623089819,0.1592,3137.6,3137.4,0.4745]
[1752623091408,0.1592,3137.6,3137.4,3.18732025]
[1752623091608,0.1592,3137.6,3137.5,3.66175099]
[1752623091891,0.1592,3137.6,3137.5,0.4745]
[1752623092212,0.1592,3137.6,3137.3,5.063]
[1752623092415,0.1592,3137.6,3137.3,5.043]
[1752623092585,0.1592,3137.6,3137.3,5.07487454]
[1752623092781,3.34641625,3137.6,3137.3,5.043]
[1752623093188,0.1592,3137.6,3137.3,5.043]
[1752623093412,0.1592,3137.6,3137.3,5.5175]
[1752623094084,0.1592,3137.6,3137.4,0.4745]
[1752623094284,3.18576291,3139.0,3137.4,0.4745]
[1752623094285,0.7733,3138.5,3137.5,4.45385099]
[1752623094491,0.1592,3138.2,3137.9,3.18676438]
[1752623094714,0.1592,3138.2,3138.0,0.4745]
[1752623095006,1.1895,3138.5,3137.4,5.5165]
[1752623095331,0.1592,3137.7,3137.4,0.4745]
[1752623097824,3.18715493,3137.6,3137.1,3.82129989]
[1752623098020,3.34628921,3137.7,3137.2,0.03187555]
[1752623098186,3.34628921,3137.7,3137.2,5.54437555]
[1752623098535,0.1592,3137.7,3137.3,0.4745]
[1752623098710,0.1592,3137.7,3137.4,0.4745]
[1752623099106,0.1592,3137.7,3137.5,0.5063725]
[1752623099320,0.1592,3137.9,3137.6,3.98468635]
[1752623099530,0.1592,3137.9,3137.7,3.66150572]
[1752623100025,0.1592,3137.9,3137.8,0.4745]
[1752623100228,0.1592,3137.9,3137.8,3.66144626]
[1752623101214,0.7727,3138.4,3138.0,3.18667497]
[1752623101433,0.1592,3138.3,3138.1,3.66114159]
[1752623101732,0.1592,3138.3,3138.2,0.4745]
[1752623101900,0.1592,3138.3,3138.0,0.4745]
[1752623102095,0.7579,3138.2,3137.4,0.4745]
[1752623102301,0.7579,3138.2,3137.3,8.21936655]
[1752623102302,0.1592,3137.8,3137.3,8.21936655]
[1752623102630,0.1592,3137.8,3137.4,0.4745]
[1752623102808,3.34620952,3137.8,3137.3,5.032]
[1752623103012,3.18713734,3137.7,3137.3,5.033]
[1752623103322,0.1592,3137.6,3137.3,5.033]
[1752623103717,0.1592,3137.6,3137.3,5.5075]
[1752623103898,0.1592,3137.6,3137.3,8.69493885]
[1752623104299,0.1592,3137.6,3137.3,5.5075]
[1752623104528,0.1592,3137.6,3137.4,0.4745]
[1752623104734,0.1592,3137.6,3137.3,8.22041381]
[1752623104915,0.1592,3137.6,3137.4,0.4745]
[1752623105510,0.1592,3137.6,3137.3,5.033]
[1752623105511,0.1592,3137.6,3137.5,3.66175099]
[1752623105818,0.1592,3137.6,3137.5,0.4745]
[1752623106019,0.1592,3137.6,3137.5,3.66175099]
[1752623106221,0.1592,3137.6,3137.5,4.34665677]
[1752623106533,0.7921,3138.5,3138.1,3.18664159]
[1752623106832,6.18539607,3139.4,3138.1,3.18664159]
[1752623107031,0.1592,3138.4,3138.1,3.99011217]
[1752623107334,0.1592,3138.4,3138.3,3.18643851]
[1752623107832,0.1592,3138.9,3138.5,3.18617599]
[1752623108037,0.1592,3138.9,3138.6,3.18612826]
[1752623108552,0.9739,3138.6,3138.0,5.041]
[1752623108755,0.1592,3138.3,3137.9,3.18683759]
[1752623109054,0.1592,3138.3,3138.2,3.18654005]
[1752623109328,0.1592,3138.3,3138.0,0.4745]
[1752623109534,0.1592,3138.3,3138.1,0.4745]
[1752623110140,0.1592,3138.3,3137.9,3.21870268]
[1752623110338,0.1592,3138.3,3138.2,0.4745]
[1752623110508,0.1592,3138.3,3137.9,3.21866482]
[1752623110705,3.34570949,3138.3,3137.9,0.50636844]
[1752623111128,3.99891122,3138.3,3137.9,0.03186844]
[1752623111334,3.18655956,3138.2,3137.8,5.1972]
[1752623111529,3.18672994,3138.1,3137.8,0.1592]
[1752623111806,0.1592,3137.9,3137.5,3.0]
[1752623112011,0.1592,3137.7,3137.6,8.69963453]
[1752623112536,0.1592,3137.7,3137.6,5.5125]
[1752623112840,0.7634,3138.3,3137.6,5.5125]
[1752623113019,0.1592,3138.1,3137.8,3.18693213]
[1752623113217,0.1592,3138.1,3137.9,0.4745]
[1752623113451,3.18620415,3138.6,3137.9,0.4745]
[1752623113452,3.18613394,3138.6,3138.0,0.4745]
[1752623113736,0.1592,3138.2,3138.0,0.4745]
[1752623113924,0.1592,3138.2,3137.9,8.22183567]
[1752623114125,0.1592,3138.2,3138.1,0.4745]
[1752623114330,0.1592,3138.2,3138.1,3.66114159]
[1752623114930,0.1592,3138.7,3138.1,0.66556641]
[1752623115127,0.1592,3138.7,3138.6,3.18613394]
[1752623115328,0.1592,3138.7,3138.6,3.61613394]
[1752623115732,3.18540397,3139.4,3138.6,5.49686133]
[1752623115913,0.1592,3139.2,3138.9,3.18576802]
[1752623116113,0.1592,3139.2,3138.6,5.6242]
[1752623116429,3.1856381,3139.1,3138.6,8.39725396]
[1752623116612,3.1856381,3139.1,3138.7,0.43]
[1752623117014,0.1592,3139.0,3138.7,0.43]
[1752623117741,3.34493207,3139.0,3138.5,0.1592]
[1752623118050,0.1592,3138.8,3138.6,0.43]
[1752623118409,0.1592,3138.8,3138.4,8.23629619]
[1752623118610,0.1592,3138.8,3138.5,3.61617874]
[1752623118813,0.1592,3138.8,3138.6,3.61611826]
[1752623119016,0.1592,3138.8,3138.6,0.43]
[1752623119547,0.1592,3139.2,3138.7,3.77521169]
[1752623119741,0.1592,3139.2,3138.9,3.18577057]
[1752623119947,0.1592,3139.2,3138.9,3.18582943]
[1752623120116,0.1592,3139.2,3139.0,0.43]
[1752623120311,0.1592,3139.2,3139.1,0.43]
[1752623120517,0.1592,3139.2,3138.8,3.21776412]
[1752623120716,0.1592,3139.2,3138.9,0.43]
[1752623121212,0.1592,3139.2,3139.0,3.61569911]
[1752623121419,0.1592,3139.2,3139.1,3.61562645]
[1752623122954,0.1592,3139.2,3139.1,0.43]
[1752623123371,0.1592,3139.2,3139.1,3.61562645]